fUST/lending_fUST_20240623
["ID","MTS","AMOUNT","RATE_DAILY","PERIOD"]
[330159402,1719072646532,-372.22830952,0.00015589,2]
[330163068,1719073888554,1022.5311541,0.00013583,2]
[330164250,1719073900896,609.36,0.00010959,2]
[330169764,1719073960111,172.03676244,0.00010959,2]
[330174631,1719074020837,155.00219471,0.00010959,2]
[330174796,1719074050943,228.08827721,0.00010959,2]
[330174810,1719074279377,38201.483695,0.00013782,2]
[330174814,1719074417220,151.0,0.000137,2]
[330174820,1719074563272,2570.23388051,0.00013515,2]
[330174821,1719074563299,2705.85386106,0.00013515,2]
[330174825,1719074946624,4666.37223849,0.00013997,2]
[330174826,1719074962870,-300.0,0.00014005,2]
[330174827,1719074962900,-193.40267835,0.00014005,2]
[330174828,1719074962938,-106.59732165,0.00014005,2]
[330174829,1719074962972,-386.8053567,0.00014005,2]
[330174830,1719074963007,-201.38891156,0.00014005,2]
[330174831,1719074963114,-493.40267835,0.00014005,2]
[330174832,1719074987840,-527.03461728,0.00014004,2]
[330174833,1719074987906,-527.03461728,0.00014004,2]
[330174834,1719074987973,-527.03461728,0.00014004,2]
[330174879,1719075032757,-300.0,0.00014003,2]
[330174882,1719075032766,-300.0,0.00014003,2]
[330174884,1719075032776,-10436.9118353,0.00014004,2]
[330174888,1719075032809,-346.49534435,0.00014004,2]
[330175461,1719075038775,-4859.74923867,0.00014004,2]
[330175463,1719075038784,-510.35558905,0.00014543,2]
[330175466,1719075038795,-274.91677028,0.00014641,2]
[330175468,1719075038804,-242.26257331,0.000149,2]
[330175470,1719075038814,-500.0,0.00015,2]
[330175472,1719075038823,-2824.23165146,0.00015302,2]
[330175474,1719075038833,-251.68166,0.00015321,2]
[330175476,1719075038843,-420.0,0.00015341,2]
[330175478,1719075038853,-700.92878728,0.00015439,2]
[330175480,1719075038863,-216.64811345,0.00015588,2]
[330175482,1719075038872,-615.32823341,0.00015588,2]
[330175484,1719075038882,-240.59867079,0.00015589,2]
[330175486,1719075038891,-302.01792676,0.00015589,2]
[330175488,1719075038901,-242.26257331,0.0001585,2]
[330175490,1719075038911,-500.0,0.00016,2]
[330175492,1719075038921,-510.35558902,0.00016052,2]
[330175494,1719075038930,-155.115434,0.00016552,2]
[330175496,1719075038939,-151.0,0.0001659,2]
[330175498,1719075038949,-876.0,0.00016612,2]
[330175500,1719075038958,-242.26257331,0.000168,2]
[330175502,1719075038967,-930.17118706,0.00016873,2]
[330175504,1719075038977,-4106.47334715,0.00016873,2]
[330175515,1719075039077,-2449.62560436,0.00016873,2]
[330175865,1719075043148,-414.81837889,0.00016873,2]
[330175867,1719075043157,-1108.7906195,0.00016974,2]
[330175870,1719075043171,-8991.9007221,0.00016974,2]
[330175872,1719075043183,-4866.09658844,0.00016974,2]
[330175875,1719075043192,-1264.43341156,0.00016999,2]
[330177090,1719076232159,-17224.26027016,0.0001438,2]
[330177091,1719076232169,-346.49534435,0.00015016,2]
[330177093,1719076232179,-2824.23165146,0.00015116,2]
[330177094,1719076232188,-154.94537953,0.00015214,2]
[330177096,1719076232198,-251.68166,0.00015639,2]
[330177097,1719076232207,-1934.03030647,0.00016131,4]
[330177098,1719076232216,-1357.21199288,0.00016132,2]
[330177099,1719076232225,-930.17118706,0.00016611,2]
[330177100,1719076232236,-5276.08774157,0.00016794,2]
[330177101,1719076232245,-161.74057159,0.00016811,2]
[330177102,1719076232255,-876.0,0.00016911,2]
[330177103,1719076232264,-500.0,0.00017,2]
[330177104,1719076232274,-306.0,0.00017,2]
[330177105,1719076232283,-161.74057156,0.00017327,2]
[330177106,1719076232293,-221.7582539,0.000175,2]
[330177107,1719076232307,-3122.34221338,0.000175,2]
[330177138,1719076238023,-398.141,0.00015075,2]
[330177243,1719076246234,-1642.07868306,0.00015075,2]
[330177244,1719076246245,-16432.53888811,0.000175,2]
[330177263,1719076570670,1000.0,0.00014,2]
[330177268,1719076770354,150.0,0.00026,120]
[330177271,1719076830262,150.0,0.00026,70]
[330177272,1719076871228,150.0,0.000258,70]
[330177274,1719077006472,3011.0,0.00026,60]
[330177278,1719077158087,157.27,0.000255,61]
[330177332,1719077432281,-703.7636435,0.00015302,2]
[330177339,1719077432370,-1000.0,0.00015302,2]
[330177340,1719077432382,-3679.64450396,0.00015302,2]
[330177343,1719077432394,-466.0,0.00015302,2]
[330177345,1719077432405,-416.6733073,0.00015302,2]
[330177347,1719077432416,-279.56735649,0.00015302,2]
[330177431,1719077438320,-425.26851915,0.00015302,2]
[330177433,1719077438329,-664.54015985,0.00015839,2]
[330177435,1719077438341,-1469.2575685,0.00015839,2]
[330177688,1719078632435,-2204.696,0.00014096,2]
[330177689,1719078632565,-4766.2213304,0.00014096,2]
[330177690,1719078632576,-300.0,0.00014856,2]
[330177691,1719078632586,-2351.68006392,0.00014857,2]
[330177692,1719078632598,-3361.70269058,0.00014857,2]
[330177747,1719078638426,-2984.03870398,0.00014857,2]
[330177748,1719078638438,-1679.52169324,0.00014857,2]
[330177749,1719078638450,-788.08124786,0.00014857,2]
[330177777,1719078643912,-95.71030876,0.00014857,2]
[330177780,1719078646618,-727.96115677,0.00014857,2]
[330177790,1719079380569,1171.85424782,0.00014,2]
[330177792,1719079435778,5507.61897527,0.00014,2]
[330177793,1719079438272,1034.4435406,0.00013772,2]
[330177821,1719079832901,-612.735,0.00014248,2]
[330177876,1719080757107,216.64811345,9.999e-05,2]
[330177877,1719080796151,251.68166,0.0001374,2]
[330177878,1719080914575,-300.0,0.00014003,2]
[330177879,1719080914604,-180.85028061,0.00014004,2]
[330177880,1719080914649,-480.85028061,0.00014004,2]
[330177881,1719080914702,-480.85028061,0.00014004,2]
[330177882,1719080914760,-215.46047882,0.00014004,2]
[330177883,1719080939323,-514.01050703,0.00014004,2]
[330177884,1719080939375,-514.01050703,0.00014004,2]
[330177885,1719080939429,-514.01050703,0.00014004,2]
[330177886,1719080939544,500.0,0.00014,2]
[330177887,1719080964555,-544.85113745,0.00014004,2]
[330177888,1719080964590,-544.85113745,0.00014004,2]
[330177889,1719080964626,-178.06809634,0.00014004,2]
[330177890,1719080989357,-570.20654487,0.00014004,2]
[330177891,1719080989408,-570.20654487,0.00014004,2]
[330177892,1719080989474,-489.18551172,0.00014004,2]
[330177907,1719081032960,-11426.84845572,0.00014004,2]
[330177908,1719081032970,-154.85288975,0.00014092,2]
[330177909,1719081032979,-6217.9949997,0.00014102,2]
[330177910,1719081032988,-2929.7493884,0.00014115,2]
[330177911,1719081032996,-295.6265954,0.00014135,2]
[330177912,1719081033005,-5276.08774157,0.00014172,2]
[330177913,1719081033014,-1091.58833364,0.00014641,2]
[330177914,1719081033023,-153.0,0.000147,2]
[330177915,1719081033032,-153.0,0.000147,2]
[330177916,1719081033041,-500.0,0.00015,2]
[330177917,1719081033049,-1971.44564542,0.00015,2]
[330178020,1719081288101,202.0,0.00026,60]
[330178022,1719081979350,418.289231,0.00013699,2]
[330178023,1719082023904,1706.6204806,0.00013699,2]
[330178033,1719082191030,-601.90252114,0.00014004,2]
[330178034,1719082191086,-475.07283794,0.00014004,2]
[330178035,1719082227532,24890.0,0.00013539,2]
[330178063,1719082232107,-2783.09873002,0.00014004,2]
[330178065,1719082232118,-164.78171356,0.00014134,2]
[330178067,1719082232128,-3124.78288904,0.00014247,4]
[330178069,1719082232137,-307.00309256,0.00014636,2]
[330178071,1719082232147,-382.7666918,0.00014647,2]
[330178073,1719082232156,-985.08465799,0.00014699,2]
[330178075,1719082232168,-2196.33745249,0.00014699,2]
[330178077,1719082232179,-2094.66563109,0.00014699,2]
[330178079,1719082232188,-300.0,0.00014704,2]
[330178081,1719082232197,-300.0,0.00014704,2]
[330178083,1719082232207,-379.4359056,0.00014932,2]
[330178085,1719082232216,-852.78600604,0.00015,2]
[330178087,1719082232225,-309.597524,0.00015,2]
[330178089,1719082232234,-287.01788425,0.00015,2]
[330178091,1719082232243,-153.0,0.00015,2]
[330178093,1719082232253,-154.94537953,0.00015009,2]
[330178095,1719082232262,-153.0,0.000152,2]
[330178097,1719082232271,-640.80503785,0.00015392,2]
[330178099,1719082232280,-216.64811345,0.00015439,2]
[330178101,1719082232290,-307.00309255,0.00015452,2]
[330178103,1719082232299,-594.0,0.000156,2]
[330178105,1719082232308,-153.0,0.0001589,2]
[330178107,1719082232317,-153.0,0.0001589,2]
[330178109,1719082232327,-153.0,0.0001589,2]
[330178111,1719082232337,-2094.09542564,0.00015934,2]
[330178136,1719082238039,-1933.44964367,0.00014092,2]
[330178138,1719082238049,-15130.16484452,0.00015934,2]
[330178140,1719082238059,-500.0,0.00016,2]
[330178142,1719082238070,-1357.21199288,0.00016,2]
[330178144,1719082238080,-1000.0,0.00016,2]
[330178146,1719082238090,-272.98223626,0.00016135,2]
[330178148,1719082238102,-533.55,0.00016135,2]
[330178252,1719083193672,1303.87982684,0.000225,30]
[330178278,1719083432257,-209.144616,0.00014417,2]
[330178280,1719083432267,-491.75196688,0.00014948,2]
[330178759,1719083438281,-10623.88373006,0.00014948,2]
[330178760,1719083438292,-300.0,0.00014999,2]
[330178761,1719083438302,-17224.26027016,0.00015,2]
[330178762,1719083438311,-208.63718054,0.00015009,2]
[330178763,1719083438321,-184.20185553,0.00015114,2]
[330178764,1719083438331,-2824.23165146,0.00015114,2]
[330178765,1719083438340,-216.64811345,0.00015214,2]
[330178766,1719083438350,-1005.58486992,0.00015439,4]
[330178767,1719083438359,-334.92085529,0.00015488,2]
[330178768,1719083438369,-154.85288975,0.0001559,2]
[330178769,1719083438378,-184.20185553,0.00015811,2]
[330178770,1719083438388,-525.12764712,0.00015884,2]
[330178771,1719083438401,-2543.2504016,0.00015884,2]
[330178772,1719083438413,-1060.0,0.00015884,2]
[330178875,1719083440662,-1147.70969285,0.00015884,2]
[330178877,1719083440672,-621.04025189,0.00016161,2]
[330178879,1719083440681,-945.278,0.00016248,2]
[330178881,1719083440692,-153.0,0.00016452,2]
[330178883,1719083440702,-184.20185553,0.00016507,2]
[330178885,1719083440711,-334.92085529,0.00016862,2]
[330178887,1719083440720,-620.05201259,0.0001697,2]
[330178889,1719083440729,-500.0,0.00017,2]
[330178891,1719083440738,-1000.0,0.00017,6]
[330178892,1719083440748,-184.20185553,0.00017204,2]
[330178894,1719083440757,-9993.69887291,0.000175,2]
[330179093,1719083446586,-1357.21199288,0.00016122,2]
[330179095,1719083446596,-22451.4200256,0.000175,2]
[330179097,1719083446606,-306.0,0.00017534,2]
[330179099,1719083446616,-620.00260063,0.00017818,2]
[330179101,1719083446625,-184.20185553,0.000179,2]
[330179103,1719083446635,-825.77816292,0.00018,2]
[330179105,1719083446645,-500.0,0.00018,2]
[330179107,1719083446655,-477.28525612,0.00018,2]
[330179109,1719083446665,-154.83742071,0.00018,2]
[330179111,1719083446674,-810.89034508,0.00018,2]
[330179113,1719083446684,-1000.0,0.00018,7]
[330179115,1719083446694,-71954.25064237,0.00018,2]
[330179117,1719083446706,-5924.67194739,0.00018,2]
[330179119,1719083446715,-20000.0,0.00018081,2]
[330179121,1719083446724,-1611.20803639,0.00018219,2]
[330179123,1719083446733,-334.92085529,0.00018236,2]
[330179125,1719083446742,-600.0,0.0001824,2]
[330179127,1719083446751,-600.0,0.0001843,2]
[330179129,1719083446760,-292.9716414,0.00018575,2]
[330179131,1719083446769,-297.0739445,0.00018575,2]
[330179133,1719083446778,-292.9716414,0.00018575,2]
[330179135,1719083446787,-600.0,0.0001862,2]
[330179137,1719083446797,-2000.0,0.000187,2]
[330179139,1719083446806,-5071.0,0.000188,2]
[330179141,1719083446815,-88888.0,0.000188,2]
[330179143,1719083446824,-154.85288975,0.00018809,2]
[330179145,1719083446833,-604.44486106,0.0001881,2]
[330179147,1719083446842,-3021.70925753,0.0001884,2]
[330179149,1719083446851,-500.0,0.00018876,2]
[330179151,1719083446860,-500.0,0.00018876,3]
[330179153,1719083446869,-500.0,0.00018876,4]
[330179155,1719083446878,-155.70989286,0.00018876,5]
[330179157,1719083446887,-1419.63753479,0.00018899,2]
[330179159,1719083446896,-175.93554965,0.00018899,2]
[330179161,1719083446908,-175.93554965,0.00018899,2]
[330179163,1719083446917,-134417.94236613,0.000189,2]
[330181058,1719084524447,-552.69883241,0.00014063,2]
[330181059,1719084524534,-552.69883241,0.00014063,2]
[330181060,1719084538585,777.98064916,0.00013963,2]
[330181061,1719084550703,-574.80678571,0.00014063,2]
[330181062,1719084550955,-211.66410006,0.00014063,2]
[330181063,1719084551032,-574.80678571,0.00014063,2]
[330181081,1719084632504,-56.2638707,0.00014063,2]
[330181083,1719084632514,-190.54452606,0.00014317,2]
[330181085,1719084632523,-876.0,0.00016729,2]
[330181087,1719084632532,-732.8827837,0.00017107,2]
[330181090,1719084632542,-581.280765,0.00017246,2]
[330181093,1719084632551,-555.62223539,0.00017717,2]
[330181176,1719084639688,-377.14966208,0.00017717,2]
[330181177,1719084639699,-292.9716414,0.00018082,2]
[330181179,1719084639710,-292.9716414,0.00018082,2]
[330181181,1719084639720,-575.64904042,0.0001824,2]
[330181185,1719084640014,-24.35095958,0.0001824,2]
[330181186,1719084640025,-300.0,0.00018398,2]
[330181187,1719084640036,-3921.30953122,0.00018399,2]
[330181188,1719084640046,-600.0,0.0001843,2]
[330181189,1719084640057,-600.0,0.0001862,2]
[330181190,1719084640067,-300.0,0.00018699,2]
[330181191,1719084640078,-597.50332868,0.00018699,2]
[330181192,1719084640088,-2386.13713961,0.00018703,2]
[330181193,1719084640099,-5924.67194739,0.00018751,2]
[330181194,1719084640109,-2386.1371396,0.00018752,2]
[330181195,1719084640119,-17956.90574681,0.00018799,2]
[330181204,1719084640904,-2043.09425319,0.00018799,2]
[330181205,1719084640914,-2312.90375417,0.000188,2]
[330181207,1719084640927,-8334.01498097,0.000188,2]
[330181242,1719085775607,-390.92863161,0.00014063,2]
[330181243,1719085775654,-318.00098139,0.00014063,2]
[330181291,1719085832637,-1197.8506997,0.00014327,2]
[330181292,1719085832646,-565.34929421,0.00014341,2]
[330181293,1719085832658,-431.80475,0.00014341,2]
[330181294,1719085832699,-360.17002976,0.00014341,2]
[330181295,1719085832712,-455.81442873,0.00014341,2]
[330181296,1719085832720,-2785.38739552,0.00015165,2]
[330181297,1719085832730,-300.0,0.00015234,2]
[330181298,1719085832741,-300.0,0.00015234,2]
[330181299,1719085832751,-24900.0,0.00015235,2]
[330181300,1719085832760,-11132.5828697,0.00015366,2]
[330181301,1719085832770,-3000.0,0.00015531,2]
[330181302,1719085832779,-250.0,0.00015795,2]
[330181303,1719085832789,-2785.38739548,0.00016049,2]
[330181304,1719085832798,-420.0,0.00016669,2]
[330181305,1719085832807,-420.0,0.00016758,2]
[330181306,1719085832816,-699.160717,0.00016933,2]
[330181337,1719085838530,-2086.22667848,0.00016933,2]
[330181338,1719085838539,-876.0,0.00017109,2]
[330181339,1719085838549,-17224.26027016,0.00017176,2]
[330181340,1719085838558,-1357.21199288,0.00017624,2]
[330181341,1719085838568,-1357.21199288,0.00017624,2]
[330181343,1719085838578,-2785.38739548,0.00017816,2]
[330181345,1719085838587,-1000.0,0.00018,7]
[330181346,1719085838597,-477.28525612,0.00018,2]
[330181347,1719085838607,-292.9716414,0.00018178,2]
[330181348,1719085838616,-292.9716414,0.00018178,2]
[330181349,1719085838626,-810.89034508,0.0001819,2]
[330181350,1719085838635,-19575.56080037,0.0001819,2]
[330181368,1719085840642,-424.43919963,0.0001819,2]
[330181369,1719085840652,-154.85288975,0.00018219,2]
[330181370,1719085840662,-3124.78288904,0.00018239,4]
[330181371,1719085840671,-587.0,0.00018239,2]
[330181372,1719085840681,-610.61834579,0.0001824,2]
[330181373,1719085840690,-3748.93240769,0.00018358,2]
[330181437,1719086958899,823.94,0.00010959,2]
[330181447,1719087032671,-346.49534435,0.00015902,2]
[330181448,1719087032681,-300.0,0.00016001,2]
[330181450,1719087032690,-300.0,0.00016001,2]
[330181452,1719087032700,-886.7108765,0.00016002,2]
[330181454,1719087032711,-1821.20639829,0.00016002,2]
[330181457,1719087032729,-1001.38208586,0.00016002,2]
[330181616,1719087038792,-3128.3688431,0.00016002,2]
[330181617,1719087038804,-18062.33179625,0.00016002,2]
[330181618,1719087038813,-1041.94650664,0.00016175,2]
[330181619,1719087038821,-2593.7518855,0.00016275,2]
[330181620,1719087038830,-354.464807,0.00016275,2]
[330181621,1719087038839,-876.0,0.00016397,2]
[330181622,1719087038848,-228.66424862,0.00016414,2]
[330181623,1719087038859,-2771.33575138,0.00016414,2]
[330181624,1719087038868,-459.3255346,0.00016731,2]
[330181625,1719087038878,-1041.94650663,0.00016831,2]
[330181626,1719087038888,-2824.23165146,0.00016998,2]
[330181627,1719087038897,-2824.23165146,0.00016998,2]
[330181628,1719087038906,-216.64811345,0.00017082,2]
[330181629,1719087038915,-11115.63569694,0.00017176,2]
[330181631,1719087038924,-199.83014591,0.00017299,2]
[330181633,1719087038933,-1041.94650663,0.00017488,2]
[330181635,1719087038942,-420.0,0.00017494,2]
[330181637,1719087038951,-292.9716414,0.00017589,2]
[330181639,1719087038960,-292.9716414,0.00017589,2]
[330181641,1719087038970,-292.9716414,0.00017589,2]
[330181643,1719087038979,-292.9716414,0.00017589,2]
[330181645,1719087038988,-292.9716414,0.00017589,2]
[330181647,1719087038997,-420.0,0.00017601,2]
[330181648,1719087039006,-839.43938696,0.0001762,2]
[330181651,1719087039015,-285.5288223,0.00017621,2]
[330181653,1719087039024,-459.32553455,0.00017927,2]
[330181654,1719087039033,-2521.35380665,0.00017999,2]
[330181656,1719087039043,-810.89034508,0.00018,2]
[330181658,1719087039052,-1000.0,0.00018,5]
[330181660,1719087039062,-825.77816292,0.00018,2]
[330181664,1719087039241,-5924.67194739,0.00018,2]
[330181665,1719087039251,-293.0182585,0.00018078,2]
[330181666,1719087039260,-820.19439706,0.0001808,2]
[330181667,1719087039270,-1041.94650663,0.00018144,2]
[330181668,1719087039279,-1527.15533388,0.00018167,2]
[330181669,1719087039289,-35655.67378632,0.0001819,2]
[330181670,1719087039298,-260.83198349,0.00018192,2]
[330181671,1719087039308,-20000.0,0.00018219,2]
[330181672,1719087039317,-154.83742071,0.00018239,2]
[330181673,1719087039326,-292.9716414,0.00018411,2]
[330181674,1719087039336,-292.9716414,0.00018411,2]
[330181675,1719087039345,-292.9716414,0.00018411,2]
[330181676,1719087039354,-292.9716414,0.00018411,2]
[330181677,1719087039364,-153.0,0.00018548,2]
[330181678,1719087039373,-153.0,0.00018548,2]
[330181679,1719087039383,-334.9496919,0.00018548,2]
[330181680,1719087039392,-153.0,0.00018548,2]
[330181681,1719087039402,-153.0,0.00018548,2]
[330181682,1719087039411,-153.0,0.00018548,2]
[330181683,1719087039420,-153.0,0.00018548,2]
[330181684,1719087039430,-153.0,0.00018548,2]
[330181685,1719087039439,-205.7189374,0.00018548,2]
[330181686,1719087039448,-205.7189374,0.00018548,2]
[330181687,1719087039458,-205.7189374,0.00018548,2]
[330181688,1719087039467,-205.7189374,0.00018548,2]
[330181689,1719087039476,-205.7189374,0.00018548,2]
[330181690,1719087039486,-1091.58833364,0.00018629,2]
[330181691,1719087039499,-153.0,0.0001863,2]
[330181692,1719087039508,-153.0,0.0001863,2]
[330181693,1719087039517,-205.7189374,0.0001863,2]
[330181694,1719087039526,-205.7189374,0.0001863,2]
[330181695,1719087039536,-205.7189374,0.0001863,2]
[330181696,1719087039546,-853.8,0.00018748,2]
[330181697,1719087039555,-306.1,0.00018748,2]
[330181698,1719087039564,-1041.94650663,0.000188,2]
[330181699,1719087039575,-2000.0,0.000188,2]
[330181700,1719087039584,-158.05213895,0.00018828,2]
[330181701,1719087039594,-477.28525612,0.00018828,2]
[330181702,1719087039603,-112871.53449646,0.000189,2]
[330182271,1719087046908,-292.9716414,0.00017589,2]
[330182273,1719087046918,-205.7189374,0.00018548,2]
[330182276,1719087046928,-6544.27192764,0.000189,2]
[330182278,1719087046939,-3095.52393131,0.000189,2]
[330182280,1719087046951,-14428.47629082,0.000189,2]
[330190160,1719088091708,2427.69248084,0.000225,30]
[330190199,1719088231859,-1526.8414083,0.00015817,2]
[330190200,1719088231868,-1.77396701,0.00015934,2]
[330190208,1719088237812,-837.66541995,0.00015934,2]
[330190209,1719088237823,-300.0,0.00016439,2]
[330190210,1719088237832,-300.0,0.00016439,2]
[330190211,1719088237845,-8148.7988029,0.0001644,2]
[330190212,1719088237857,-16751.2011971,0.0001644,2]
[330190213,1719088237866,-333.8176056,0.00016544,2]
[330190214,1719088237876,-1317.15017829,0.00016948,2]
[330190215,1719088237887,-13710.52382682,0.00016948,2]
[330190218,1719088238014,-958.04081908,0.00016948,2]
[330190220,1719088238024,-640.0476287,0.00016988,2]
[330190221,1719088238035,-920.6956282,0.0001703,2]
[330190223,1719088238044,-333.81760557,0.00017089,2]
[330190225,1719088238054,-757.88511326,0.00017191,2]
[330190227,1719088238066,-118.11488674,0.00017191,2]
[330190229,1719088238075,-1401.68714535,0.00017497,4]
[330190231,1719088238086,-1357.21199288,0.00017499,2]
[330190233,1719088238096,-333.81760557,0.00017633,2]
[330190235,1719088238106,-300.77162494,0.00018077,2]
[330190238,1719088238116,-411.1889033,0.00018078,2]
[330190240,1719088238126,-205.7189374,0.00018078,2]
[330190241,1719088238136,-205.7189374,0.00018078,2]
[330190244,1719088238146,-420.0,0.00018083,2]
[330190246,1719088238156,-640.04762865,0.00018148,2]
[330190248,1719088238166,-333.81760557,0.00018178,2]
[330190249,1719088238175,-205.7189374,0.00018178,2]
[330190251,1719088238185,-205.7189374,0.00018178,2]
[330190254,1719088238195,-20000.0,0.0001819,2]
[330190256,1719088238205,-153.0,0.00018274,2]
[330190257,1719088238214,-153.0,0.00018356,2]
[330190259,1719088238223,-153.0,0.00018356,2]
[330190261,1719088238232,-9660.7237105,0.00018357,2]
[330190263,1719088238241,-10077.72726667,0.00018499,2]
[330190265,1719088238250,-1128.07282827,0.000185,2]
[330190416,1719088774938,400.0,0.00010959,2]
[330190417,1719088785487,333.33,0.00010959,2]
[330190418,1719088796022,277.78,0.00010959,2]
[330190419,1719088806882,231.48,0.00010959,2]
[330190420,1719088817448,192.9,0.00010959,2]
[330190421,1719088828016,160.75,0.00010959,2]
[330190422,1719088838541,803.77,0.00010959,2]
[330190423,1719088882943,4689.21379075,0.00010959,2]
[330190424,1719088947941,4688.78854323,0.00013283,2]
[330190425,1719089256568,6217.9949997,0.00014063,2]
[330190480,1719089438030,-1357.21199288,0.00016,2]
[330190481,1719089438041,-295.87897014,0.00016192,2]
[330190547,1719089456724,178.49,0.00010959,2]
[330190548,1719089467228,535.49,0.00010959,2]
[330190549,1719089676160,179.62872259,0.00013283,2]
[330190550,1719089806007,154.83742071,0.00013283,10]
[330190551,1719089885901,154.83742071,0.00013283,10]
[330190552,1719089981906,190.91972087,0.00013283,10]
[330190554,1719090472277,24900.0,0.00014063,2]
[330190611,1719090632299,-932.77189747,0.00014641,2]
[330190612,1719090632308,-273.14461243,0.00015439,2]
[330190613,1719090632318,-300.0,0.00015455,2]
[330190615,1719090632327,-300.0,0.00015455,2]
[330190616,1719090632336,-11132.5828697,0.00015456,2]
[330190618,1719090632345,-177.232403,0.00015795,2]
[330190620,1719090632354,-3000.0,0.00015795,2]
[330190622,1719090632363,-902.93775555,0.00016,2]
[330190624,1719090632372,-2646.74126199,0.00016192,2]
[330190625,1719090632381,-1757.33844438,0.00016399,2]
[330190627,1719090632390,-782.7,0.00016438,2]
[330190629,1719090632399,-280.6,0.00016438,2]
[330190631,1719090632409,-782.7,0.00016712,2]
[330190633,1719090632419,-280.6,0.00016712,2]
[330190634,1719090632429,-1757.33844436,0.00016795,2]
[330190636,1719090632438,-420.0,0.00016906,2]
[330190638,1719090632448,-782.7,0.00016986,2]
[330190640,1719090632457,-280.6,0.00016986,2]
[330190642,1719090632465,-876.0,0.00016988,2]
[330190644,1719090632474,-420.0,0.00017,2]
[330190645,1719090632483,-216.64811345,0.00017084,2]
[330190647,1719090632492,-480.03572154,0.000171,2]
[330190649,1719090632501,-1757.33844436,0.0001719,2]
[330190650,1719090632510,-153.0,0.000172,2]
[330190652,1719090632519,-2824.23165146,0.00017259,2]
[330190654,1719090632527,-2824.23165146,0.00017259,2]
[330190657,1719090632548,-154.83742071,0.00017259,2]
[330190658,1719090632558,-782.7,0.0001726,2]
[330190659,1719090632568,-280.6,0.0001726,2]
[330190660,1719090632578,-323.5556165,0.00017452,2]
[330190661,1719090632588,-153.0,0.00017452,2]
[330190662,1719090632598,-565.63257972,0.00017499,2]
[330190663,1719090632609,-1259.49871558,0.00017516,2]
[330190664,1719090632618,-782.7,0.00017534,2]
[330190665,1719090632628,-280.6,0.00017534,2]
[330190666,1719090632638,-1757.33844436,0.00017586,2]
[330190667,1719090632649,-782.7,0.00017808,2]
[330190668,1719090632658,-280.6,0.00017808,2]
[330190669,1719090632667,-1653.09096302,0.00017978,4]
[330190670,1719090632677,-1751.64848086,0.00017979,2]
[330190696,1719090638390,-250.0,0.00015609,2]
[330190697,1719090638400,-248.35151914,0.00017979,2]
[330190698,1719090638410,-839.43938696,0.0001798,2]
[330190699,1719090638420,-1757.33844436,0.00017981,2]
[330190700,1719090638430,-5924.67194739,0.00018,2]
[330190701,1719090638440,-477.28525612,0.00018,2]
[330190702,1719090638450,-825.77816292,0.00018,2]
[330190703,1719090638460,-761.01167733,0.00018,2]
[330190704,1719090638469,-16125.55525479,0.00018079,2]
[330190705,1719090638485,-2690.97441111,0.00018079,2]
[330190706,1719090638505,-625.44716545,0.00018079,2]
[330190707,1719090638516,-4106.82886566,0.00018079,2]
[330190819,1719091832560,-2824.23165146,0.00015439,2]
[330190820,1719091832571,-455.8144287,0.00015997,2]
[330190821,1719091832581,-177.232404,0.00016362,2]
[330190822,1719091832591,-300.0,0.00016427,2]
[330190823,1719091832600,-24900.0,0.00016428,2]
[330190824,1719091832610,-391.3,0.00016438,2]
[330190825,1719091832620,-391.3,0.00016712,2]
[330190826,1719091832629,-151.0,0.00016712,2]
[330190827,1719091832639,-205.7189374,0.000168,2]
[330190829,1719091832648,-205.7189374,0.000168,2]
[330190830,1719091832658,-839.43938696,0.00016873,2]
[330190831,1719091832667,-839.43938696,0.00016873,2]
[330190832,1719091832676,-391.3,0.00016986,2]
[330190833,1719091832686,-151.0,0.00016986,2]
[330190834,1719091832695,-391.3,0.0001726,2]
[330190835,1719091832705,-151.0,0.0001726,2]